bitfinex/quotes_BTCUSD_20250614
["timestamp","ask_amount","ask_price","bid_price","bid_amount"]
[1749918506344,0.22313828,104870.0,104860.0,0.25560326]
[1749918506569,0.22313828,104870.0,104860.0,0.004]
[1749918506850,1.92714473,104870.0,104860.0,0.04544]
[1749918507297,1.92714473,104870.0,104860.0,0.04304]
[1749918507511,1.99024473,104870.0,104860.0,0.04304]
[1749918508370,1.99024473,104870.0,104860.0,0.05257652]
[1749918508572,1.95904473,104870.0,104860.0,0.04304]
[1749918509404,1.92714473,104870.0,104860.0,0.04304]
[1749918510442,1.95724473,104870.0,104860.0,0.04304]
[1749918511308,1.92714473,104870.0,104860.0,0.05257652]
[1749918511435,1.92714473,104870.0,104860.0,0.24330701]
[1749918512999,1.72693395,104870.0,104860.0,0.33491548]
[1749918513226,0.0419604,104870.0,104860.0,0.34445155]
[1749918513498,0.02289036,104870.0,104860.0,0.3979715]
[1749918513722,0.0674404,104880.0,104870.0,0.28231805]
[1749918513945,0.26766922,104880.0,104870.0,0.28231805]
[1749918514163,0.26766922,104880.0,104870.0,0.27278308]
[1749918514816,0.26866922,104880.0,104870.0,0.27278308]
[1749918515957,0.26866922,104880.0,104870.0,0.28231824]
[1749918516164,0.25913516,104880.0,104870.0,0.28231824]
[1749918521722,0.08754183,104880.0,104870.0,0.28231824]
[1749918522633,0.09707608,104880.0,104870.0,0.28231824]
[1749918523095,0.01907059,104870.0,104860.0,0.26332248]
[1749918523328,0.03814026,104870.0,104860.0,0.38563488]
[1749918523599,0.04767578,104870.0,104860.0,0.27031493]
[1749918523826,0.03814017,104870.0,104860.0,0.27031493]
[1749918524061,0.0476756,104870.0,104860.0,0.27031493]
[1749918524960,0.0476756,104870.0,104860.0,0.27131493]
[1749918525412,0.0476756,104870.0,104860.0,0.27331493]
[1749918525646,0.16072381,104880.0,104860.0,0.27331493]
[1749918525647,0.04228198,104880.0,104870.0,0.28111805]
[1749918525884,0.01362598,104880.0,104870.0,0.28111805]
[1749918526165,0.24771935,104900.0,104890.0,0.20020964]
[1749918526365,0.34396111,104900.0,104890.0,0.21927677]
[1749918526574,0.6648958,104900.0,104880.0,0.27156215]
[1749918526777,0.00953352,104890.0,104880.0,0.28109603]
[1749918527534,0.01906713,104890.0,104880.0,0.28109603]
[1749918528335,0.01906686,104890.0,104880.0,0.28109603]
[1749918528804,0.03160047,104890.0,104880.0,0.28109603]
[1749918529034,0.03160011,104890.0,104880.0,0.28109603]
[1749918529672,0.04113327,104890.0,104880.0,0.28109603]
[1749918529955,0.04213318,104890.0,104880.0,0.28109603]
[1749918530417,0.03259966,104890.0,104880.0,0.28109603]
[1749918530913,0.04213318,104890.0,104880.0,0.28109603]
[1749918531589,0.03259966,104890.0,104880.0,0.28109603]
[1749918531802,0.04213318,104890.0,104880.0,0.28109603]
[1749918535670,0.03259966,104890.0,104880.0,0.28109603]
[1749918536898,0.04213309,104890.0,104880.0,0.28109603]
[1749918537517,0.0516667,104890.0,104880.0,0.28109603]
[1749918537750,0.05166661,104890.0,104880.0,0.28109603]
[1749918540237,0.22327677,104890.0,104880.0,0.19069412]
[1749918540453,0.22327677,104890.0,104870.0,0.26394765]
[1749918540454,0.20976289,104880.0,104870.0,0.26394765]
[1749918540665,0.20976289,104880.0,104870.0,0.20978326]
[1749918540666,0.22883175,104880.0,104870.0,0.20978326]
[1749918540874,0.03813763,104880.0,104870.0,0.22885339]
[1749918541089,0.03813736,104880.0,104870.0,0.29255339]
[1749918542843,0.04867197,104880.0,104870.0,0.29255339]
[1749918543057,0.03913781,104880.0,104870.0,0.29255339]
[1749918543681,0.03913781,104880.0,104870.0,0.22885339]
[1749918544104,0.0296032,104880.0,104870.0,0.22885339]
[1749918544314,0.0296032,104880.0,104870.0,0.29275339]
[1749918548125,0.03913781,104880.0,104870.0,0.29275339]
[1749918548526,0.22983193,104880.0,104870.0,0.21931842]
[1749918549506,1.95090173,104880.0,104860.0,0.27330253]
[1749918549662,0.0190704,104870.0,104860.0,0.27330253]
[1749918550454,0.02860583,104870.0,104860.0,0.27330253]
[1749918550658,0.02860528,104870.0,104860.0,0.27330253]
[1749918550860,0.01906994,104870.0,104860.0,0.27330253]
[1749918551086,0.02860519,104870.0,104860.0,0.27330253]
[1749918551289,1.684973,104870.0,104860.0,0.28283823]
[1749918551773,0.22885357,104870.0,104860.0,0.27330308]
[1749918552088,0.01907195,104860.0,104850.0,0.28285893]
[1749918552301,0.01907195,104860.0,104850.0,0.28294987]
[1749918552998,0.00953588,104860.0,104850.0,0.28294987]
[1749918553197,0.00953561,104870.0,104860.0,0.20026683]
[1749918553398,1.91842092,104870.0,104860.0,0.20026683]
[1749918553610,1.94127304,104870.0,104860.0,0.20026683]
[1749918553820,1.95080838,104870.0,104860.0,0.20026683]
[1749918554034,1.91760838,104870.0,104860.0,0.2098029]
[1749918554726,1.91760838,104870.0,104860.0,0.21933887]
[1749918555171,1.91760838,104870.0,104860.0,0.22133887]
[1749918555638,1.91760838,104870.0,104860.0,0.22233887]
[1749918558795,2.51329936,104870.0,104860.0,0.003]
[1749918559051,2.71329936,104870.0,104860.0,0.003]
[1749918559718,2.61715014,104870.0,104860.0,0.003]
[1749918561019,2.41715014,104870.0,104860.0,0.003]
[1749918561227,2.44580914,104870.0,104860.0,0.003]
[1749918563406,2.41570914,104870.0,104860.0,0.003]
[1749918563610,2.44580914,104870.0,104860.0,0.003]
[1749918563842,2.4743782,104870.0,104860.0,0.003]
[1749918564064,2.57047194,104870.0,104860.0,0.003]
[1749918564338,2.54193544,104870.0,104860.0,0.003]
[1749918564551,2.47432272,104870.0,104860.0,0.003]
[1749918565012,2.67432272,104870.0,104860.0,0.003]
[1749918565827,2.67432272,104870.0,104860.0,0.002]
[1749918566236,0.24026683,104860.0,104850.0,9.094e-05]
[1749918566443,2.13615161,104860.0,104850.0,9.094e-05]
[1749918566662,2.23230083,104860.0,104850.0,9.094e-05]
[1749918567668,2.23330083,104860.0,104850.0,9.094e-05]
[1749918568040,2.13715161,104860.0,104850.0,9.094e-05]
[1749918570929,2.13713647,104860.0,104850.0,9.094e-05]
[1749918571892,2.47713647,104860.0,104850.0,9.094e-05]
[1749918574278,2.50579847,104860.0,104850.0,9.094e-05]
[1749918576278,2.54385649,104860.0,104850.0,9.094e-05]
[1749918576483,2.54384451,104860.0,104850.0,9.094e-05]
[1749918578551,2.63999373,104860.0,104850.0,9.094e-05]
[1749918579756,2.60989373,104860.0,104850.0,9.094e-05]
[1749918579977,2.51374451,104860.0,104850.0,9.094e-05]
[1749918582254,2.48522068,104860.0,104850.0,9.094e-05]
[1749918583068,2.51662068,104860.0,104850.0,9.094e-05]
[1749918584263,2.48522068,104860.0,104850.0,9.094e-05]
[1749918584481,2.5079067,104860.0,104850.0,9.094e-05]
[1749918587236,2.56495457,104860.0,104850.0,9.094e-05]
[1749918588061,2.5079067,104860.0,104850.0,9.094e-05]
[1749918588455,2.56495457,104860.0,104850.0,9.094e-05]
[1749918590586,2.75254755,104860.0,104850.0,9.094e-05]
[1749918591257,2.80959542,104860.0,104850.0,9.094e-05]
[1749918591720,2.75454755,104860.0,104850.0,9.094e-05]
[1749918592378,2.81059542,104860.0,104850.0,9.094e-05]
[1749918592638,2.7745374,104860.0,104850.0,9.094e-05]
[1749918592846,2.81264013,104860.0,104850.0,9.094e-05]
[1749918596171,2.7745374,104860.0,104850.0,9.094e-05]
[1749918596816,2.75185138,104860.0,104850.0,9.094e-05]
[1749918597597,2.76677499,104860.0,104850.0,9.094e-05]
[1749918598881,2.70347499,104860.0,104850.0,9.094e-05]
[1749918600030,2.49662445,104860.0,104850.0,0.26487705]
[1749918600247,2.4870882,104860.0,104850.0,0.06459094]
[1749918602342,2.44893414,104860.0,104850.0,0.06459094]
[1749918609314,2.54508336,104860.0,104850.0,0.06459094]
[1749918609582,2.44893414,104860.0,104850.0,0.06459094]
[1749918613304,2.44901654,104860.0,104850.0,0.06459094]
[1749918613487,2.44901654,104860.0,104850.0,9.094e-05]
[1749918615473,1.88525893,104850.0,104840.0,0.0642]
[1749918615691,0.0190775,104830.0,104820.0,0.22887424]
[1749918616344,0.0190775,104830.0,104820.0,0.29307424]
[1749918616574,0.00953861,104830.0,104820.0,0.29307424]
[1749918616812,0.0190774,104830.0,104820.0,0.29307424]
[1749918617679,0.0190774,104830.0,104820.0,0.29507424]
[1749918618578,0.04348238,104830.0,104820.0,0.29507424]
[1749918618745,0.04348238,104830.0,104820.0,0.29907424]
[1749918618957,0.03394359,104830.0,104820.0,0.29707424]
[1749918619142,0.04348238,104830.0,104820.0,0.29407424]
[1749918619337,0.04348238,104830.0,104820.0,0.29607424]
[1749918619547,0.03394359,104830.0,104820.0,0.29607424]
[1749918621153,0.02440498,104830.0,104820.0,0.29607424]
[1749918621454,0.00953843,104830.0,104820.0,0.29607424]
[1749918621657,0.01907704,104830.0,104820.0,0.29607424]
[1749918622683,0.03361951,104830.0,104820.0,0.29607424]
[1749918623099,0.02408108,104830.0,104820.0,0.34888606]
[1749918623519,0.42971692,104840.0,104830.0,0.28490174]
[1749918623936,0.42971446,104840.0,104830.0,0.28490174]
[1749918625621,0.39156301,104840.0,104830.0,0.28490174]
[1749918625831,0.37243671,104840.0,104830.0,0.28490174]
[1749918626042,0.38197441,104840.0,104830.0,0.28490174]
[1749918626253,0.38197432,104840.0,104830.0,0.28490174]
[1749918626828,0.41528042,104840.0,104830.0,0.28490174]
[1749918627426,0.4248184,104840.0,104830.0,0.28490174]
[1749918627610,0.41528042,104840.0,104830.0,0.28490174]
[1749918628539,0.4248184,104840.0,104830.0,0.28490174]
[1749918628752,0.4248183,104840.0,104830.0,0.28490174]
[1749918628963,0.50259604,104840.0,104830.0,0.28490174]
[1749918629385,0.50259659,104840.0,104830.0,0.28490174]
[1749918629625,0.48352018,104840.0,104830.0,0.28490174]
[1749918629849,0.49305834,104840.0,104830.0,0.28490174]
[1749918630261,0.6155861,104840.0,104830.0,0.27536313]
[1749918630438,0.62512444,104840.0,104830.0,0.29444062]
[1749918630887,0.42481922,104840.0,104830.0,0.30397923]
[1749918631097,0.43435747,104840.0,104830.0,0.30397923]
[1749918631307,0.59651079,104840.0,104830.0,0.0655]
[1749918631520,0.6193174,104840.0,104830.0,0.27536331]
[1749918631727,0.64794116,104840.0,104830.0,0.27536331]
[1749918632593,0.64794116,104840.0,104830.0,0.05503925]
[1749918632594,0.6193174,104840.0,104830.0,0.05503925]
[1749918632800,0.64794116,104840.0,104830.0,0.05207841]
[1749918633005,0.64794116,104840.0,104830.0,0.24286349]
[1749918633222,0.62513455,104840.0,104830.0,0.25240256]
[1749918633429,0.59651079,104840.0,104830.0,0.25240256]
[1749918634702,0.59651079,104840.0,104830.0,0.26194154]
[1749918635138,0.59651079,104840.0,104830.0,0.27148043]
[1749918635726,0.59651079,104840.0,104830.0,0.30148043]
[1749918635936,0.59651079,104840.0,104830.0,0.30147997]
[1749918636169,0.6358392,104840.0,104830.0,0.30147997]
[1749918636807,0.28497142,104840.0,104830.0,0.30147997]
[1749918637501,0.28497142,104840.0,104830.0,0.29194118]
[1749918638563,0.28497142,104840.0,104830.0,0.30147997]
[1749918638992,0.62497142,104840.0,104830.0,0.30147997]
[1749918643803,0.62497142,104840.0,104830.0,0.30147951]
[1749918647010,0.62497142,104840.0,104810.0,0.19068398]
[1749918647011,2.04405268,104820.0,104810.0,0.24970592]
[1749918647231,0.36861902,104820.0,104810.0,0.29858856]
[1749918647488,0.37815909,104820.0,104810.0,0.29858856]
[1749918647701,0.56896237,104820.0,104810.0,0.29858874]
[1749918647929,0.56896237,104820.0,104810.0,0.28964717]
[1749918648141,0.57850253,104820.0,104810.0,0.29918769]
[1749918648357,0.57850253,104820.0,104810.0,0.30166411]
[1749918648569,0.60139281,104820.0,104810.0,0.30566411]
[1749918648836,0.68958968,104820.0,104810.0,0.23710147]
[1749918649049,0.67051055,104820.0,104810.0,0.21624245]
[1749918649314,0.67051055,104820.0,104810.0,0.00647642]
[1749918649315,2.34594366,104820.0,104810.0,0.00647642]
[1749918650000,2.37734366,104820.0,104810.0,0.00647642]
[1749918650207,2.31994679,104820.0,104810.0,0.00447642]
[1749918650625,2.31994679,104820.0,104810.0,0.00147642]
[1749918651048,2.31994679,104820.0,104810.0,0.00347642]
[1749918651532,2.44481231,104820.0,104810.0,0.00347642]
[1749918651747,2.54096153,104820.0,104810.0,0.00347642]
[1749918652174,2.54096153,104820.0,104810.0,0.00147642]
[1749918652397,2.57912881,104820.0,104810.0,0.00147642]
[1749918652646,2.54096153,104820.0,104810.0,0.00147642]
[1749918652883,2.54096153,104820.0,104810.0,0.00047642]
[1749918653132,2.77912881,104820.0,104810.0,0.00047642]
[1749918654031,2.99366966,104820.0,104810.0,0.00047642]
[1749918654497,2.9650459,104820.0,104810.0,0.00047642]
[1749918654727,2.66472248,104820.0,104810.0,0.00047642]
[1749918654957,2.15364438,104820.0,104810.0,0.28202048]
[1749918655189,2.07648203,104820.0,104810.0,0.29156091]
[1749918655406,2.07648175,104820.0,104810.0,0.34075484]
[1749918655632,2.06694205,104820.0,104810.0,0.29156091]
[1749918655850,2.09556125,104820.0,104810.0,0.29156091]
[1749918656074,2.26728576,104820.0,104810.0,0.27247977]
[1749918656552,2.27682583,104820.0,104810.0,0.27247977]
[1749918656797,2.27682583,104820.0,104810.0,0.28202048]
[1749918657503,2.27682583,104820.0,104810.0,0.29156109]
[1749918658381,2.27682583,104820.0,104810.0,0.28202048]
[1749918659058,2.26728631,104820.0,104810.0,0.28202048]
[1749918660632,2.26728631,104820.0,104810.0,0.291561]
[1749918660835,2.29595631,104820.0,104810.0,0.291561]
[1749918661460,2.10515303,104820.0,104810.0,0.30110143]
[1749918661888,2.29595631,104820.0,104810.0,0.291561]
[1749918662560,2.29595631,104820.0,104810.0,0.28202048]
[1749918662784,2.29595631,104820.0,104810.0,0.27247977]
[1749918663256,2.28641661,104820.0,104810.0,0.24077986]
[1749918663478,2.27687663,104820.0,104810.0,0.24077986]
[1749918664207,2.27687663,104820.0,104810.0,0.25032047]
[1749918664416,2.27687663,104820.0,104810.0,0.24077986]
[1749918664625,2.27687663,104820.0,104810.0,0.25032057]
[1749918665032,2.09561315,104820.0,104810.0,0.25986118]
[1749918665241,2.10515331,104820.0,104810.0,0.2694017]
[1749918665458,0.02289028,104820.0,104810.0,0.35464694]
[1749918665663,2.23332755,104840.0,104830.0,0.20032433]
[1749918665869,2.23332755,104840.0,104820.0,0.25160865]
[1749918665870,1.70405059,104830.0,104820.0,0.27396913]
[1749918666073,0.08010515,104830.0,104820.0,0.29304826]
[1749918666281,0.0572842,104830.0,104820.0,0.29304826]
[1749918666511,0.40682327,104830.0,104820.0,0.29304826]
[1749918666733,0.368668,104830.0,104820.0,0.34681746]
[1749918666992,2.42818352,104840.0,104830.0,0.23252433]
[1749918667194,1.91654421,104840.0,104830.0,0.2611409]
[1749918667428,2.44731173,104840.0,104830.0,0.2420634]
[1749918667641,2.44731173,104840.0,104830.0,0.25160229]
[1749918667848,2.43777375,104840.0,104830.0,0.2420634]
[1749918668119,2.43477375,104840.0,104830.0,0.2420634]
[1749918668326,2.43877375,104840.0,104830.0,0.2420634]
[1749918669180,2.42269725,104840.0,104830.0,0.20032433]
[1749918669645,2.42269725,104840.0,104830.0,0.2098634]
[1749918670715,2.42269725,104840.0,104830.0,0.20032433]
[1749918671150,2.42269725,104840.0,104830.0,0.20986349]
[1749918672909,2.24304991,104840.0,104830.0,0.20986349]
[1749918673591,2.24304991,104840.0,104830.0,0.21940256]
[1749918674028,2.25258807,104840.0,104830.0,0.26763569]
[1749918674236,2.25258807,104840.0,104830.0,0.27717467]
[1749918674446,2.23904991,104840.0,104830.0,0.04823313]
[1749918674682,0.34,104830.0,104820.0,0.28200801]
[1749918675328,0.34953843,104830.0,104820.0,0.28200801]
[1749918675530,0.37815518,104830.0,104820.0,0.28200801]
[1749918675759,0.37815518,104830.0,104820.0,0.27246858]
[1749918675948,0.38769443,104830.0,104820.0,0.36549982]
[1749918676649,0.36861602,104830.0,104820.0,0.36549982]
[1749918677081,0.37815518,104830.0,104820.0,0.36549982]
[1749918677298,0.37815509,104830.0,104820.0,0.36549982]
[1749918677719,0.36861602,104830.0,104820.0,0.36549982]
[1749918677933,0.37815518,104830.0,104820.0,0.36549982]
[1749918678148,0.36861602,104830.0,104820.0,0.36549982]
[1749918678624,0.34,104830.0,104820.0,0.36549982]
[1749918678846,0.34953843,104830.0,104820.0,0.36549982]
[1749918679286,0.35907704,104830.0,104820.0,0.36549982]
[1749918679768,0.34953843,104830.0,104820.0,0.36549982]
[1749918679983,0.35907695,104830.0,104820.0,0.36549982]
[1749918680892,0.35907695,104830.0,104820.0,0.31378858]
[1749918681851,0.34,104830.0,104820.0,0.31378858]
[1749918682060,0.34953852,104830.0,104820.0,0.31378858]
[1749918682474,0.35907722,104830.0,104820.0,0.31378858]
[1749918682897,0.34953852,104830.0,104820.0,0.31378858]
[1749918683616,0.35907713,104830.0,104820.0,0.36963182]
[1749918684432,0.34,104830.0,104820.0,0.36963182]
[1749918684648,0.34953852,104830.0,104820.0,0.36963182]
[1749918684865,0.34,104830.0,104820.0,0.36963182]
[1749918685735,0.34953852,104830.0,104820.0,0.36963182]
[1749918685936,0.34,104830.0,104820.0,0.36963182]
[1749918686159,0.34953843,104830.0,104820.0,0.36963182]
[1749918686564,0.35907704,104830.0,104820.0,0.36963182]
[1749918687808,0.36861583,104830.0,104820.0,0.36963182]
[1749918688056,0.34953843,104830.0,104820.0,0.36963182]
[1749918688205,0.35907704,104830.0,104820.0,0.36963182]
[1749918688815,0.34,104830.0,104820.0,0.36963182]
[1749918689423,0.34953852,104830.0,104820.0,0.31378858]
[1749918690199,0.36861602,104830.0,104820.0,0.31378858]
[1749918690404,0.34,104830.0,104820.0,0.31378858]
[1749918690608,0.34953861,104830.0,104820.0,0.31378858]
[1749918691867,0.3590774,104830.0,104820.0,0.31378858]
[1749918692079,0.35907713,104830.0,104820.0,0.31378858]
[1749918693009,0.3588598,104830.0,104820.0,0.36963182]
[1749918693671,0.36839859,104830.0,104820.0,0.36963182]
[1749918694151,0.3588598,104830.0,104820.0,0.36963182]
[1749918694360,0.3683985,104830.0,104820.0,0.36963182]
[1749918695426,0.37793739,104830.0,104820.0,0.36963182]
[1749918695836,0.38747646,104830.0,104820.0,0.31378858]
[1749918696593,0.37793803,104830.0,104820.0,0.26292906]
[1749918696779,0.0286193,104820.0,104810.0,0.29166035]
[1749918696997,0.0286193,104820.0,104810.0,0.38790211]
[1749918697204,0.0286193,104820.0,104810.0,0.00047642]
[1749918697205,0.54988306,104820.0,104810.0,0.00047642]
[1749918697393,0.68789421,104820.0,104810.0,0.04179642]
[1749918697612,0.71919421,104820.0,104810.0,0.05133749]
[1749918697952,0.71919421,104820.0,104810.0,0.01101749]
[1749918698205,0.71919421,104820.0,104810.0,0.01301749]
[1749918698206,0.63685664,104820.0,104810.0,0.01301749]
[1749918698422,0.63685664,104820.0,104810.0,0.05433749]
[1749918698581,0.63685664,104820.0,104810.0,0.01301749]
[1749918698789,0.63685664,104820.0,104810.0,0.04479642]
[1749918699023,0.63685664,104820.0,104810.0,0.05433749]
[1749918699433,0.63685664,104820.0,104810.0,0.04479642]
[1749918700490,0.63685664,104820.0,104810.0,0.00347642]
[1749918701348,0.42697358,104820.0,104810.0,0.00347642]
[1749918701558,0.61777686,104820.0,104810.0,0.00347642]
[1749918704627,0.61777686,104820.0,104810.0,0.01301749]
[1749918705059,0.61777686,104820.0,104810.0,0.00347642]
[1749918705791,0.70148645,104820.0,104810.0,0.00347642]
[1749918706245,0.61777686,104820.0,104810.0,0.20083888]
[1749918706885,0.64644686,104820.0,104810.0,0.20083888]
[1749918707953,0.58234686,104820.0,104810.0,0.21037968]
[1749918708172,0.59188684,104820.0,104810.0,0.20083888]
[1749918709335,0.58234686,104820.0,104810.0,0.00047642]
[1749918709554,0.61464686,104820.0,104810.0,0.00047642]
[1749918709995,0.64260553,104820.0,104810.0,0.00047642]
[1749918710216,0.67520553,104820.0,104810.0,0.1912979]
[1749918710489,0.67520553,104820.0,104810.0,0.20083897]
[1749918710913,0.64260553,104820.0,104810.0,0.20083897]
[1749918711352,0.67520553,104820.0,104810.0,0.20083897]
[1749918712244,0.61464686,104820.0,104810.0,0.20083897]
[1749918712694,0.61464686,104820.0,104810.0,0.00047642]
[1749918712940,0.64724686,104820.0,104810.0,0.00047642]
[1749918715069,0.64724686,104820.0,104810.0,0.1912979]
[1749918715269,0.59188684,104820.0,104810.0,0.20083879]
[1749918715495,0.59188684,104820.0,104810.0,0.23143879]
[1749918716788,0.59188684,104820.0,104810.0,0.2409795]
[1749918718106,0.56321684,104820.0,104810.0,0.23143879]
[1749918718316,0.56321684,104820.0,104810.0,0.24097959]
[1749918718529,0.56321684,104820.0,104810.0,0.23143879]
[1749918720059,0.56321684,104820.0,104810.0,0.24097959]
[1749918721439,0.56321684,104820.0,104810.0,0.2505203]
[1749918722513,0.56321684,104820.0,104810.0,0.24097959]
[1749918723377,0.37241328,104820.0,104810.0,0.29186073]
[1749918723605,0.37815918,104820.0,104810.0,0.29186073]
[1749918723833,0.57850262,104820.0,104810.0,0.29186091]
[1749918724046,0.59183677,104820.0,104810.0,0.29186091]
[1749918724518,0.61299707,104820.0,104810.0,0.20083879]
[1749918724980,0.58229707,104820.0,104810.0,0.21037959]
[1749918725422,0.60345709,104820.0,104810.0,0.00047642]
[1749918725638,0.62581702,104820.0,104810.0,0.00047642]
[1749918725886,0.65435095,104820.0,104810.0,0.00047642]
[1749918726092,2.33096895,104820.0,104810.0,0.00047642]
[1749918726773,2.36913623,104820.0,104810.0,0.00047642]
[1749918727032,2.42721071,104820.0,104810.0,0.00047642]
[1749918727281,2.46537799,104820.0,104810.0,0.00047642]
[1749918728638,2.49404999,104820.0,104810.0,0.00047642]
[1749918729317,2.51562249,104820.0,104810.0,0.00047642]
[1749918729571,2.49404999,104820.0,104810.0,0.00047642]
[1749918731546,2.51404999,104820.0,104810.0,0.00047642]
[1749918732015,2.51407727,104820.0,104810.0,0.00047642]
[1749918732236,2.68551606,104820.0,104810.0,0.00047642]
[1749918732450,2.78166528,104820.0,104810.0,0.00047642]
[1749918734194,2.79620613,104820.0,104810.0,0.00047642]
[1749918735974,2.44658414,104820.0,104810.0,0.00047642]
[1749918737988,2.78658414,104820.0,104810.0,0.00047642]
[1749918738405,2.44658414,104820.0,104810.0,0.00047642]
[1749918741066,2.43704398,104820.0,104810.0,0.00047642]
[1749918741583,2.43704398,104820.0,104810.0,0.00025918]
[1749918742011,2.45704398,104820.0,104810.0,0.00025918]
[1749918742400,2.45696363,104820.0,104810.0,0.00025918]
[1749918742831,0.21948548,104790.0,104780.0,0.28882736]
[1749918743031,1.89610348,104790.0,104780.0,0.34867001]
[1749918743264,1.9189206,104790.0,104780.0,0.34867003]
[1749918743669,1.7280627,104790.0,104780.0,0.35821347]
[1749918743990,1.7280627,104790.0,104780.0,0.35521292]
[1749918743991,1.72806261,104790.0,104780.0,0.35521292]
[1749918744229,1.7376055,104790.0,104780.0,0.35521292]
[1749918744437,1.9284634,104790.0,104780.0,0.33607168]
[1749918744574,2.0017955,104790.0,104780.0,0.33707168]
[1749918744803,2.02460044,104790.0,104780.0,0.33707168]
[1749918745039,1.73759332,104790.0,104780.0,0.34661493]
[1749918745376,1.92845122,104790.0,104780.0,0.28620815]
[1749918745554,1.91890897,104790.0,104780.0,0.27666471]
[1749918745973,1.91890897,104790.0,104780.0,0.28620816]
[1749918746541,1.71850818,104790.0,104780.0,0.28620816]
[1749918746746,1.72805098,104790.0,104780.0,0.28682663]
[1749918746962,1.73759387,104790.0,104780.0,0.28682663]
[1749918747157,1.92845177,104790.0,104780.0,0.27728347]
[1749918747357,1.92845177,104790.0,104780.0,0.28682672]
[1749918747965,1.91890924,104790.0,104780.0,0.27728347]
[1749918750237,1.71850809,104790.0,104780.0,0.27728347]
[1749918750442,0.02862795,104790.0,104780.0,0.28682663]
[1749918750656,0.22902874,104790.0,104780.0,0.27728347]
[1749918751873,0.22902874,104790.0,104780.0,0.28682672]
[1749918752309,0.0556554,104790.0,104780.0,0.28682672]
[1749918753485,0.06519784,104790.0,104780.0,0.27728347]
[1749918753694,0.06519784,104790.0,104780.0,0.26774012]
[1749918753894,0.0556554,104790.0,104780.0,0.27728365]
[1749918754080,1.7322734,104790.0,104780.0,0.28682709]
[1749918754283,1.7550665,104790.0,104780.0,0.28682709]
[1749918755119,1.7550665,104790.0,104780.0,0.34168254]
[1749918755339,1.7550665,104790.0,104780.0,0.35122579]
[1749918755542,1.7550665,104790.0,104780.0,0.34168254]
[1749918755748,1.7550665,104790.0,104780.0,0.28682709]
[1749918758205,0.0784485,104790.0,104780.0,0.28682709]
[1749918758409,0.0556554,104790.0,104780.0,0.28682709]
[1749918761550,0.3956554,104790.0,104780.0,0.28682709]
[1749918762182,0.38611251,104790.0,104780.0,0.0674378]
[1749918762407,2.06273051,104790.0,104780.0,0.24540143]
[1749918762615,2.08552361,104790.0,104780.0,0.24540143]
[1749918764313,2.08552361,104790.0,104780.0,0.26448858]
[1749918764511,2.14802361,104790.0,104780.0,0.0032378]
[1749918764921,2.31252309,104790.0,104780.0,0.0032378]
[1749918765279,2.31054249,104790.0,104780.0,0.0032378]
[1749918765489,2.27854249,104790.0,104780.0,0.0032378]
[1749918765923,2.27854249,104790.0,104780.0,0.20365772]
[1749918766138,2.25002309,104790.0,104780.0,0.0032378]
[1749918766344,2.25002309,104790.0,104780.0,0.0002378]
[1749918766764,2.25202309,104790.0,104780.0,0.0002378]
[1749918766992,2.28054249,104790.0,104780.0,0.0002378]
[1749918767650,2.25202309,104790.0,104780.0,0.0002378]
[1749918767865,2.28054249,104790.0,104780.0,0.0002378]
[1749918770039,2.28054249,104790.0,104780.0,0.20065772]
[1749918770465,2.28054249,104790.0,104780.0,0.0097816]
[1749918770675,2.28054249,104790.0,104780.0,0.0002378]
[1749918772001,2.53493347,104790.0,104780.0,0.0002378]
[1749918772867,2.57310075,104790.0,104780.0,0.0002378]
[1749918773737,2.7876416,104790.0,104780.0,0.0002378]
[1749918773967,2.7876416,104790.0,104770.0,0.02]
[1749918773968,0.22041974,104780.0,104770.0,0.02]
[1749918774182,0.22041974,104780.0,104770.0,0.02894299]
[1749918774183,2.50464076,104780.0,104770.0,0.02894299]
[1749918774413,2.50464076,104780.0,104770.0,0.02]
[1749918774414,2.61019011,104780.0,104770.0,0.02]
[1749918774632,2.82473096,104780.0,104770.0,0.02]
[1749918775343,2.82473096,104780.0,104770.0,0.02032252]
[1749918775560,2.27905686,104770.0,104760.0,0.0004037]
[1749918775783,2.42658908,104770.0,104760.0,0.00949059]
[1749918776023,2.55710154,104770.0,104760.0,0.00949061]
[1749918776268,2.55710154,104770.0,104750.0,0.01190351]
[1749918776269,2.53361685,104760.0,104750.0,0.01190351]
[1749918776498,2.71913309,104760.0,104750.0,0.00249642]
[1749918776724,2.82315709,104760.0,104750.0,0.00249642]
[1749918776954,2.53681624,104760.0,104750.0,0.00249642]
[1749918777187,2.48766984,104760.0,104750.0,0.20297355]
[1749918777414,2.38188246,104760.0,104750.0,0.26797373]
[1749918777627,2.37233711,104760.0,104750.0,0.06749642]
[1749918777837,2.37233711,104760.0,104750.0,0.03439642]
[1749918778045,2.46857887,104760.0,104750.0,0.00249642]
[1749918778276,2.50754083,104760.0,104750.0,0.00249642]
[1749918778486,2.60369005,104760.0,104750.0,0.00249642]
[1749918778983,2.50754083,104760.0,104750.0,0.00249642]
[1749918779194,2.50854083,104760.0,104750.0,0.00249642]
[1749918779622,2.51054083,104760.0,104750.0,0.00249642]
[1749918780507,2.57404083,104760.0,104750.0,0.00249642]
[1749918781139,2.54114083,104760.0,104750.0,0.00249642]
[1749918781356,2.63729005,104760.0,104750.0,0.00249642]
[1749918781591,2.54114083,104760.0,104750.0,0.00249642]
[1749918781808,2.51054083,104760.0,104750.0,0.00249642]
[1749918782023,2.53054083,104760.0,104750.0,0.00249642]
[1749918784702,2.53054083,104760.0,104750.0,0.23357373]
[1749918784918,2.52099539,104760.0,104750.0,0.2548272]
[1749918785137,2.50099539,104760.0,104750.0,0.2548272]
[1749918785354,2.50099539,104760.0,104750.0,0.06389642]
[1749918786799,0.53722307,104760.0,104750.0,0.28346598]
[1749918787012,0.55261082,104760.0,104750.0,0.29301188]
[1749918787413,0.52397477,104760.0,104750.0,0.29301188]
[1749918787654,0.53351966,104760.0,104750.0,0.29301188]
[1749918787866,0.57174983,104760.0,104750.0,0.29301188]
[1749918788073,0.56220466,104760.0,104750.0,0.29301188]
[1749918788314,0.54311497,104760.0,104750.0,0.29301188]
[1749918788517,0.55265977,104760.0,104750.0,0.29301188]
[1749918789010,0.56220485,104760.0,104750.0,0.29301188]
[1749918789231,0.55265977,104760.0,104750.0,0.29301188]
[1749918789457,0.56220476,104760.0,104750.0,0.29301188]
[1749918789905,0.65851401,104760.0,104750.0,0.33433188]
[1749918790144,0.65851392,104760.0,104750.0,0.33433188]
[1749918790643,0.65851401,104760.0,104750.0,0.29301188]
[1749918790874,2.5355901,104760.0,104750.0,0.28346598]
[1749918791091,2.26745872,104760.0,104750.0,0.29301188]
[1749918791800,2.26745863,104760.0,104750.0,0.29301188]
[1749918792029,2.24836784,104760.0,104750.0,0.29301188]
[1749918792246,0.58129519,104760.0,104750.0,0.29301188]
[1749918792469,0.59084063,104760.0,104750.0,0.29301188]
[1749918793380,0.59084136,104760.0,104750.0,0.29301188]
[1749918795050,0.59084136,104760.0,104750.0,0.27391999]
[1749918795284,0.77220893,104760.0,104750.0,0.28346616]
[1749918795506,0.76266385,104760.0,104750.0,0.28346616]
[1749918795730,0.7531185,104760.0,104750.0,0.26437373]